[Event "3rd Gujarat GM Open 2022"]
[Site "Ahmedabad"]
[Date "2022.04.03"]
[Round "6.14"]
[White "Vignesh N R"]
[Black "Santu, Mondal"]
[Result "1-0"]
[ECO "C05"]
[WhiteElo "2444"]
[BlackElo "2063"]
[Annotator "NA RC"]
[PlyCount "55"]
[EventDate "2022.03.31"]
[EventType "swiss"]
[EventCountry "IND"]
[SourceTitle "playchess.com"]
[Source "ChessBase"]
[SourceQuality "1"]
[TimeControl "5400+30"]

1. e4 {[%emt 1:31:00]} e6 {[%emt 1:31:00]} 2. d4 {[%emt 0:00:30]} d5 {[%emt 0:00:30]} 3. Nd2 {[%emt 0:00:30]} Nf6 {[%emt 0:00:30]} 4. e5 {[%emt 0:00:30]} Nfd7 {[%emt 0:00:30]} 5. Bd3 {[%emt 0:00:30]} c5 {[%emt 0:00:30]} 6. c3 {[%emt 0:00:30]} Nc6 {[%emt 0:00:30]} 7. Ngf3 {[%emt 0:00:30]} f5 {[%emt 0:00:30]} 8. exf6 {[%emt 0:00:30]} Nxf6 {[%emt 0:00:30]} 9. O-O {[%emt 0:00:30]} cxd4 {[%emt 0:00:30]} 10. cxd4 {[%emt 0:00:30]} Bd6 {[%emt 0:00:30]} 11. Re1 {[%emt 0:00:30]} O-O {[%emt 0:00:30]} 12. a3 {[%emt 0:00:30]} Qb6 {[%emt 0:00:30]} 13. Nb3 {[%emt 0:00:30]} a5 {[%emt 0:00:30]} 14. Be3 {[%emt 0:00:30]} a4 {[%emt 0:00:30]} 15. Nc5 {[%emt 0:00:30]} Nxd4 {[%emt 0:00:30]} 16. Nxa4 {[%emt 0:00:30]} Nxf3+ {[%emt 0:00:30]} 17. Qxf3 {[%emt 0:00:30]} Qd8 {[%emt 0:00:30]} 18. Nb6 {[%emt 0:00:30]} Rb8 {[%emt 0:00:30]} 19. Qh3 {[%emt 0:00:30]} e5 {[%emt 0:00:30]} 20. Nxc8 {[%emt 0:00:30]} Rxc8 {[%emt 0:00:30]} 21. Bf5 {[%emt 0:00:30]} Rc4 {[%emt 0:00:30]} 22. Rad1 {[%emt 0:00:30]} Qe7 {[%emt 0:00:30]} 23. Rxd5 {[%emt 0:00:30]} Re8 {[%emt 0:00:30]} 24. Bg5 {[%emt 0:00:30]} h6 {[%emt 0:00:30]} 25. Bxf6 {[%emt 0:00:30]} Qxf6 {[%emt 0:00:30]} 26. Qb3 {[%emt 0:00:30]} b5 {[%emt 0:00:30]} 27. Rxb5 {[%emt 0:00:30]} Qf7 {[%emt 0:00:30]} 28. Bg6 {[%emt 0:00:30]} 1-0

[Event "3rd Gujarat GM Open 2022"]
[Site "Ahmedabad"]
[Date "2022.04.03"]
[Round "6.15"]
[White "Sahu, Sekhar Chandra"]
[Black "Gusain, Himal"]
[Result "0-1"]
[ECO "A00"]
[WhiteElo "2049"]
[BlackElo "2408"]
[Annotator "RC"]
[PlyCount "58"]
[EventDate "2022.03.31"]
[EventType "swiss"]
[EventCountry "IND"]
[SourceTitle "playchess.com"]
[Source "ChessBase"]
[SourceQuality "1"]
[TimeControl "5400+30"]

1. g3 {[%emt 0:05:44]} e5 {[%emt 0:01:37]} 2. Bg2 {[%emt 0:00:08]} d5 {[%emt 0:00:44]} 3. c4 {[%emt 0:01:12]} d4 {[%emt 0:00:26]} 4. Nf3 {[%emt 0:00:38]} e4 {[%emt 0:01:34]} 5. Ng1 {[%emt 0:00:02]} f5 {[%emt 0:05:15]} 6. d3 {[%emt 0:03:00]} Nf6 {[%emt 0:01:41]} 7. Bg5 {[%emt 0:00:24]} Nc6 {[%emt 0:06:54]} 8. dxe4 {[%emt 0:02:56]} fxe4 {[%emt 0:00:05]} 9. Bxe4 {[%emt 0:00:14]} Bb4+ {[%emt 0:00:08]} 10. Kf1 {[%emt 0:00:57]} O-O {[%emt 0:00:18]} 11. Bf3 {[%emt 0:17:07]} Ne5 {[%emt 0:02:38]} 12. Qb3 {[%emt 0:01:58]} c5 {[%emt 0:02:23]} 13. a3 {[%emt 0:09:43]} Ba5 {[%emt 0:00:05]} 14. Nd2 {[%emt 0:03:56]} Be6 {[%emt 0:03:17]} 15. Rc1 {[%emt 0:12:51]} Rb8 {[%emt 0:02:37]} 16. Bf4 {[%emt 0:03:58]} Bxd2 {[%emt 0:02:24]} 17. Bxd2 {[%emt 0:01:09]} b5 {[%emt 0:02:14]} 18. Kg2 {[%emt 0:08:31]} bxc4 {[%emt 0:00:34]} 19. Qc2 {[%emt 0:00:18]} Rb3 {[%emt 0:03:19]} 20. Bf4 {[%emt 0:03:33]} Nxf3 {[%emt 0:00:14]} 21. exf3 {[%emt 0:00:04]} Qb6 {[%emt 0:00:15]} 22. Nh3 {[%emt 0:06:01]} Rxb2 {[%emt 0:00:37]} 23. Qd1 {[%emt 0:00:10]} Bd5 {[%emt 0:00:43]} 24. Re1 {[%emt 0:00:50]} Qc6 {[%emt 0:00:12]} 25. Re7 {[%emt 0:06:16]} Rb3 {[%emt 0:00:46]} 26. Ng5 {[%emt 0:03:12]} h6 {[%emt 0:03:14]} 27. Ne4 {[%emt 0:00:51]} Nxe4 {[%emt 0:00:41]} 28. fxe4 {[%emt 0:00:16]} Bxe4+ {[%emt 0:00:07]} 29. Kg1 {[%emt 0:00:16]} Rxf4 {[%emt 0:00:10]} 0-1

[Event "3rd Gujarat GM Open 2022"]
[Site "Ahmedabad"]
[Date "2022.04.03"]
[Round "6.16"]
[White "Kumar, Gaurav"]
[Black "Shahil Dey"]
[Result "1/2-1/2"]
[ECO "B42"]
[WhiteElo "2025"]
[BlackElo "2400"]
[Annotator "NA RC"]
[PlyCount "81"]
[EventDate "2022.03.31"]
[EventType "swiss"]
[EventCountry "IND"]
[SourceTitle "playchess.com"]
[Source "ChessBase"]
[SourceQuality "1"]
[TimeControl "5400+30"]

1. e4 {[%emt 0:00:13]} c5 {[%emt 0:00:11]} 2. Nf3 {[%emt 0:00:08]} e6 {[%emt 0:00:06]} 3. d4 {[%emt 0:00:06]} cxd4 {[%emt 0:00:05]} 4. Nxd4 {[%emt 0:00:05]} a6 {[%emt 0:00:07]} 5. Bd3 {[%emt 0:00:24]} Nf6 {[%emt 0:00:10]} 6. O-O {[%emt 0:01:17]} d6 {[%emt 0:00:05]} 7. Qe2 {[%emt 0:01:35]} g6 {[%emt 0:00:32]} 8. c4 {[%emt 0:01:29]} Bg7 {[%emt 0:00:09]} 9. Kh1 {[%emt 0:04:28]} O-O {[%emt 0:00:20]} 10. f4 {[%emt 0:03:20]} e5 {[%emt 0:05:01]} 11. Nc2 {[%emt 0:05:20]} Nc6 {[%emt 0:01:24]} 12. Nc3 {[%emt 0:00:24]} exf4 {[%emt 0:01:59]} 13. Bxf4 {[%emt 0:00:33]} Nh5 {[%emt 0:00:14]} 14. Qe3 {[%emt 0:08:23]} Nxf4 {[%emt 1:27:07]} 15. Qxf4 {[%emt 0:00:08]} Bxc3 {[%emt 0:00:00]} 16. bxc3 {[%emt 0:00:09]} Ne5 {[%emt 0:00:00]} 17. Be2 {[%emt 0:03:03]} Be6 {[%emt 0:00:00]} 18. Ne3 {[%emt 0:00:33]} Rc8 {[%emt 0:00:00]} 19. Rad1 {[%emt 0:03:55]} Rc6 {[%emt 0:00:00]} 20. h4 {[%emt 0:16:21]} Qa5 {[%emt 0:00:00]} 21. Nf5 {[%emt 0:09:06]} Bxf5 {[%emt 0:00:00]} 22. exf5 {[%emt 0:00:07]} Qxc3 {[%emt 0:00:00]} 23. h5 {[%emt 0:06:37]} f6 {[%emt 0:00:00]} 24. fxg6 {[%emt 0:03:07]} hxg6 {[%emt 0:00:00]} 25. Qh6 {[%emt 0:06:07]} Qg3 {[%emt 0:00:00]} 26. hxg6 {[%emt 0:03:53]} Qxg6 {[%emt 0:00:00]} 27. Qxg6+ {[%emt 0:00:09]} Nxg6 {[%emt 0:00:00]} 28. Bf3 {[%emt 0:00:06]} Rb6 {[%emt 0:00:00]} 29. Rb1 {[%emt 0:01:49]} Rxb1 {[%emt 0:00:00]} 30. Rxb1 {[%emt 0:00:03]} Rb8 {[%emt 0:00:00]} 31. Rb6 {[%emt 0:00:44]} Ne5 {[%emt 0:00:00]} 32. Bd5+ {[%emt 0:06:28]} Kg7 {[%emt 0:00:00]} 33. a4 {[%emt 0:01:54]} Nd7 {[%emt 0:00:00]} 34. Rxd6 {[%emt 0:00:28]} Nc5 {[%emt 0:00:00]} 35. a5 {[%emt 0:00:12]} Kg6 {[%emt 0:00:00]} 36. Rb6 {[%emt 0:02:05]} Rh8+ {[%emt 0:00:00]} 37. Kg1 {[%emt 0:00:10]} Rh7 {[%emt 0:00:00]} 38. Kf2 {[%emt 0:02:15]} Re7 {[%emt 0:00:00]} 39. Kf3 {[%emt 0:00:48]} Kf5 {[%emt 0:00:00]} 40. Rb1 {[%emt 0:01:19]} Kg5 {[%emt 0:00:00]} 41. Rb6 {[%emt 0:01:57]} 1/2-1/2

[Event "3rd Gujarat GM Open 2022"]
[Site "Ahmedabad"]
[Date "2022.04.03"]
[Round "6.17"]
[White "Rajesh, V A V"]
[Black "Deodhar, Vrushali Umesh"]
[Result "1-0"]
[ECO "A01"]
[WhiteElo "2376"]
[BlackElo "1974"]
[Annotator "ChessBase"]
[PlyCount "73"]
[EventDate "2022.03.31"]
[EventType "swiss"]
[EventCountry "IND"]
[SourceTitle "playchess.com"]
[Source "ChessBase"]
[SourceQuality "1"]
[TimeControl "5400+30"]

1. b3 {[%emt 0:02:57]} e5 {[%emt 0:00:09]} 2. Bb2 {[%emt 0:00:05]} Nc6 {[%emt 0:00:04]} 3. e3 {[%emt 0:00:12]} Nf6 {[%emt 0:00:05]} 4. Bb5 {[%emt 0:01:40]} Bd6 {[%emt 0:00:21]} 5. Na3 {[%emt 0:09:11]} a6 {[%emt 0:00:39]} 6. Be2 {[%emt 0:02:18]} b5 {[%emt 0:00:51]} 7. c4 {[%emt 0:00:25]} b4 {[%emt 0:00:48]} 8. Nc2 {[%emt 0:00:04]} e4 {[%emt 0:00:51]} 9. d4 {[%emt 0:01:33]} exd3 {[%emt 0:00:41]} 10. Bxd3 {[%emt 0:02:59]} Bb7 {[%emt 0:00:58]} 11. Nf3 {[%emt 0:00:25]} O-O {[%emt 0:00:37]} 12. O-O {[%emt 0:00:38]} Re8 {[%emt 0:04:31]} 13. Ncd4 {[%emt 0:05:51]} Ne5 {[%emt 0:07:28]} 14. Be2 {[%emt 0:01:53]} Ne4 {[%emt 0:09:53]} 15. Nf5 {[%emt 0:07:47]} Nxf3+ {[%emt 0:03:56]} 16. Bxf3 {[%emt 0:01:08]} Be5 {[%emt 0:01:11]} 17. Bxe5 {[%emt 0:01:03]} Rxe5 {[%emt 0:00:02]} 18. Qd4 {[%emt 0:04:28]} d6 {[%emt 0:02:10]} 19. Bxe4 {[%emt 0:02:14]} Bxe4 {[%emt 0:01:37]} 20. Ng3 {[%emt 0:01:01]} Bc6 {[%emt 0:03:45]} 21. f4 {[%emt 0:13:23]} Re8 {[%emt 0:02:30]} 22. e4 {[%emt 0:01:39]} Qh4 {[%emt 0:01:01]} 23. Rae1 {[%emt 0:02:37]} Re6 {[%emt 0:03:54]} 24. Nf5 {[%emt 0:07:17]} Qf6 {[%emt 0:05:37]} 25. Qxf6 {[%emt 0:00:25]} gxf6 {[%emt 0:01:02]} 26. Nd4 {[%emt 0:00:07]} Bd7 {[%emt 0:01:04]} 27. Nxe6 {[%emt 0:00:05]} fxe6 {[%emt 0:00:03]} 28. e5 {[%emt 0:00:07]} Kf7 {[%emt 0:00:16]} 29. exd6 {[%emt 0:00:58]} cxd6 {[%emt 0:00:01]} 30. Rd1 {[%emt 0:00:10]} Ke7 {[%emt 0:00:08]} 31. Rd4 {[%emt 0:00:04]} Bc6 {[%emt 0:00:09]} 32. Rfd1 {[%emt 0:00:05]} d5 {[%emt 0:00:53]} 33. cxd5 {[%emt 0:00:05]} Bxd5 {[%emt 0:00:04]} 34. Rxb4 {[%emt 0:00:07]} Rc8 {[%emt 0:00:05]} 35. Rd2 {[%emt 0:00:05]} f5 {[%emt 0:00:26]} 36. Rb6 {[%emt 0:00:12]} a5 {[%emt 0:00:25]} 37. Ra6 {[%emt 0:00:10]} 1-0

[Event "3rd Gujarat GM Open 2022"]
[Site "Ahmedabad"]
[Date "2022.04.03"]
[Round "6.18"]
[White "Sidhant, Mohapatra"]
[Black "Bhosale Shriraj"]
[Result "1/2-1/2"]
[ECO "D11"]
[WhiteElo "2359"]
[BlackElo "1959"]
[Annotator "COMBH"]
[PlyCount "74"]
[EventDate "2022.03.31"]
[EventType "swiss"]
[EventCountry "IND"]
[SourceTitle "playchess.com"]
[Source "ChessBase"]
[SourceQuality "1"]
[TimeControl "5400+30"]

1. d4 {[%emt 0:00:13]} Nf6 {[%emt 0:00:13]} 2. g3 {[%emt 0:00:21]} d5 {[%emt 0:00:39]} 3. c4 {[%emt 0:00:10]} c6 {[%emt 0:01:27]} 4. Bg2 {[%emt 0:00:15]} Bf5 {[%emt 0:00:21]} 5. Nf3 {[%emt 0:06:50]} e6 {[%emt 0:00:42]} 6. Nc3 {[%emt 0:01:15]} Nbd7 {[%emt 0:01:03]} 7. Nh4 {[%emt 0:07:23]} Bg4 {[%emt 0:03:20]} 8. h3 {[%emt 0:00:38]} Bh5 {[%emt 0:00:10]} 9. Qb3 {[%emt 0:00:46]} Qb6 {[%emt 0:02:47]} 10. g4 {[%emt 0:04:51]} Bg6 {[%emt 0:02:16]} 11. Nxg6 {[%emt 0:04:47]} hxg6 {[%emt 0:00:28]} 12. g5 {[%emt 0:00:07]} Ng8 {[%emt 0:11:31]} 13. Qxb6 {[%emt 0:04:12]} axb6 {[%emt 0:00:44]} 14. cxd5 {[%emt 0:00:08]} exd5 {[%emt 0:00:26]} 15. e4 {[%emt 0:00:46]} dxe4 {[%emt 0:01:51]} 16. Nxe4 {[%emt 0:00:15]} f5 {[%emt 0:00:40]} 17. Nc3 {[%emt 0:01:18]} Bd6 {[%emt 0:03:20]} 18. d5 {[%emt 0:01:37]} Ne7 {[%emt 0:00:51]} 19. dxc6 {[%emt 0:01:27]} bxc6 {[%emt 0:01:00]} 20. Be3 {[%emt 0:12:35]} Bc5 {[%emt 0:04:55]} 21. Bxc5 {[%emt 0:00:27]} Nxc5 {[%emt 0:00:33]} 22. O-O-O {[%emt 0:01:35]} Rd8 {[%emt 0:00:49]} 23. Rxd8+ {[%emt 0:10:35]} Kxd8 {[%emt 0:00:06]} 24. Rd1+ {[%emt 0:00:08]} Kc7 {[%emt 0:01:05]} 25. Ne2 {[%emt 0:05:53]} Ne6 {[%emt 0:01:39]} 26. f4 {[%emt 0:01:53]} Rh4 {[%emt 0:01:04]} 27. Rf1 {[%emt 0:00:24]} Kd6 {[%emt 0:00:43]} 28. Kd2 {[%emt 0:00:18]} Nd5 {[%emt 0:00:57]} 29. Bxd5 {[%emt 0:00:11]} cxd5 {[%emt 0:01:44]} 30. Rf3 {[%emt 0:00:06]} d4 {[%emt 0:00:49]} 31. a4 {[%emt 0:05:18]} Kc5 {[%emt 0:03:16]} 32. Rd3 {[%emt 0:03:50]} Rh8 {[%emt 0:02:26]} 33. Rb3 {[%emt 0:00:08]} Rh4 {[%emt 0:01:39]} 34. Rd3 {[%emt 0:08:03]} Rh8 {[%emt 0:06:35]} 35. Rb3 {[%emt 0:00:41]} Rh4 {[%emt 0:00:34]} 36. Rd3 {[%emt 0:19:06]} Kc4 {[%emt 0:45:47]} 37. b3+ Kd5 {[%emt 0:00:30]} 1/2-1/2

[Event "3rd Gujarat GM Open 2022"]
[Site "Ahmedabad"]
[Date "2022.04.04"]
[Round "7.2"]
[White "Hesham, Abdelrahman"]
[Black "Neelotpal, Das"]
[Result "0-1"]
[ECO "D12"]
[WhiteElo "2425"]
[BlackElo "2409"]
[Annotator "ChessBase"]
[PlyCount "166"]
[EventDate "2022.03.31"]
[EventType "swiss"]
[EventCountry "IND"]
[SourceTitle "playchess.com"]
[Source "ChessBase"]
[SourceQuality "1"]
[TimeControl "5400+30"]

1. d4 {[%emt 0:06:04]} d5 {[%emt 0:00:11]} 2. c4 {[%emt 0:00:06]} c6 {[%emt 0:00:05]} 3. Nf3 {[%emt 0:00:12]} Nf6 {[%emt 0:00:05]} 4. e3 {[%emt 0:00:08]} Bf5 {[%emt 0:00:05]} 5. Nc3 {[%emt 0:01:02]} e6 {[%emt 0:00:05]} 6. Nh4 {[%emt 0:00:14]} Be4 {[%emt 0:00:32]} 7. f3 {[%emt 0:11:35]} Bg6 {[%emt 0:00:26]} 8. Qb3 {[%emt 0:00:53]} Qb6 {[%emt 0:02:14]} 9. Nxg6 {[%emt 0:02:22]} hxg6 {[%emt 0:00:06]} 10. Bd3 {[%emt 0:03:21]} Nbd7 {[%emt 0:01:11]} 11. Bd2 {[%emt 0:00:08]} Qc7 {[%emt 0:08:46]} 12. O-O-O {[%emt 0:07:02]} dxc4 {[%emt 0:05:39]} 13. Bxc4 {[%emt 0:00:07]} Be7 {[%emt 0:00:48]} 14. Kb1 {[%emt 0:01:59]} b5 {[%emt 0:01:04]} 15. Bd3 {[%emt 0:02:46]} a6 {[%emt 0:18:19]} 16. Ne4 {[%emt 0:08:41]} Nxe4 {[%emt 0:10:45]} 17. Bxe4 {[%emt 0:00:44]} Rc8 {[%emt 0:00:07]} 18. Rc1 {[%emt 0:03:29]} c5 {[%emt 0:00:29]} 19. Qa3 {[%emt 0:01:45]} f5 {[%emt 0:15:22]} 20. Bd3 {[%emt 0:03:59]} Kf7 {[%emt 0:00:57]} 21. dxc5 {[%emt 0:04:56]} Nxc5 {[%emt 0:01:52]} 22. b4 {[%emt 0:06:25]} Qd7 {[%emt 0:08:24]} 23. bxc5 {[%emt 0:00:19]} Rhd8 {[%emt 0:00:20]} 24. Ba5 {[%emt 0:06:21]} Qxd3+ {[%emt 0:00:52]} 25. Qxd3 {[%emt 0:00:06]} Rxd3 {[%emt 0:00:03]} 26. c6 {[%emt 0:00:12]} Ba3 {[%emt 0:05:48]} 27. Rc2 {[%emt 0:07:07]} Ke7 {[%emt 0:04:31]} 28. e4 {[%emt 0:05:03]} Bd6 {[%emt 0:00:04]} 29. c7 {[%emt 0:04:36]} Ra3 {[%emt 0:04:06]} 30. Bb6 {[%emt 0:00:44]} Ra4 {[%emt 0:01:03]} 31. exf5 {[%emt 0:06:58]} Rb4+ {[%emt 0:00:26]} 32. Rb2 {[%emt 0:00:48]} Rxb2+ {[%emt 0:00:06]} 33. Kxb2 {[%emt 0:00:02]} gxf5 {[%emt 0:00:17]} 34. h4 {[%emt 0:01:03]} Bxc7 {[%emt 0:00:22]} 35. Bxc7 {[%emt 0:00:35]} Rxc7 {[%emt 0:00:04]} 36. h5 {[%emt 0:00:04]} Kf6 {[%emt 0:05:06]} 37. h6 {[%emt 0:00:05]} gxh6 {[%emt 0:00:09]} 38. Rxh6+ {[%emt 0:00:03]} Ke5 {[%emt 0:00:07]} 39. Rg6 {[%emt 0:00:40]} Rc6 {[%emt 0:02:37]} 40. g3 {[%emt 0:00:15]} Kd4 {[%emt 0:00:59]} 41. f4 {[%emt 0:01:31]} Ke4 {[%emt 0:00:18]} 42. Kb3 {[%emt 0:00:16]} a5 {[%emt 0:00:38]} 43. Rg8 {[%emt 0:01:56]} Kf3 {[%emt 0:00:20]} 44. Rg6 {[%emt 0:01:24]} Ke4 {[%emt 0:02:31]} 45. Rg8 {[%emt 0:00:15]} Rd6 {[%emt 0:01:01]} 46. Kc2 {[%emt 0:00:13]} Kd4 {[%emt 0:02:00]} 47. Rg6 {[%emt 0:01:33]} Kc4 {[%emt 0:00:30]} 48. g4 {[%emt 0:00:39]} Rd4 {[%emt 0:00:16]} 49. Rxe6 {[%emt 0:00:33]} fxg4 {[%emt 0:00:04]} 50. f5 {[%emt 0:00:14]} Rf4 {[%emt 0:00:45]} 51. Rg6 {[%emt 0:01:22]} Rf2+ {[%emt 0:01:03]} 52. Kd1 {[%emt 0:00:48]} Kd3 {[%emt 0:01:10]} 53. Kc1 {[%emt 0:01:15]} Kc3 {[%emt 0:00:20]} 54. Rc6+ {[%emt 0:00:44]} Kb4 {[%emt 0:00:06]} 55. Rg6 {[%emt 0:00:26]} Ka3 {[%emt 0:00:51]} 56. Rxg4 {[%emt 0:00:18]} Rf1+ {[%emt 0:01:12]} 57. Kc2 {[%emt 0:00:06]} Rxf5 {[%emt 0:00:28]} 58. Kb1 {[%emt 0:00:06]} Rf1+ {[%emt 0:00:14]} 59. Kc2 {[%emt 0:00:01]} Kxa2 {[%emt 0:00:36]} 60. Rg5 {[%emt 0:00:05]} Rb1 {[%emt 0:00:09]} 61. Rg8 {[%emt 0:00:26]} Rb2+ {[%emt 0:00:35]} 62. Kc1 {[%emt 0:00:10]} Rb4 {[%emt 0:00:21]} 63. Rg2+ {[%emt 0:00:18]} Ka3 {[%emt 0:00:05]} 64. Rg3+ {[%emt 0:00:05]} Ka4 {[%emt 0:00:09]} 65. Kc2 {[%emt 0:00:40]} Rh4 {[%emt 0:00:10]} 66. Rg2 {[%emt 0:00:01]} Kb4 {[%emt 0:00:07]} 67. Kb2 {[%emt 0:00:05]} a4 {[%emt 0:00:05]} 68. Rf2 {[%emt 0:00:07]} a3+ {[%emt 0:00:45]} 69. Ka2 {[%emt 0:00:36]} Ka4 {[%emt 0:00:08]} 70. Rf8 {[%emt 0:00:18]} Rh2+ {[%emt 0:00:07]} 71. Ka1 {[%emt 0:00:03]} b4 {[%emt 0:00:09]} 72. Rf4 {[%emt 0:00:03]} Rc2 {[%emt 0:01:03]} 73. Kb1 {[%emt 0:00:08]} Rc6 {[%emt 0:00:44]} 74. Ka2 {[%emt 0:00:06]} Rh6 {[%emt 0:02:11]} 75. Rg4 {[%emt 0:00:13]} Rh2+ {[%emt 0:00:37]} 76. Kb1 {[%emt 0:00:48]} Rd2 {[%emt 0:00:07]} 77. Rh4 {[%emt 0:00:50]} Kb3 {[%emt 0:00:18]} 78. Rh3+ {[%emt 0:00:53]} Kc4 {[%emt 0:00:05]} 79. Rh4+ {[%emt 0:01:04]} Rd4 {[%emt 0:00:08]} 80. Rh3 {[%emt 0:00:08]} b3 {[%emt 0:00:27]} 81. Rh1 {[%emt 0:00:02]} Kc3 {[%emt 0:01:08]} 82. Rc1+ {[%emt 0:00:06]} Kd2 {[%emt 0:00:08]} 83. Rh1 {[%emt 0:00:05]} Re4 {[%emt 0:00:25]} 0-1

[Event "3rd Gujarat GM Open 2022"]
[Site "Ahmedabad"]
[Date "2022.04.04"]
[Round "7.3"]
[White "Srihari L R"]
[Black "Fawzy, Adham"]
[Result "1-0"]
[ECO "D72"]
[WhiteElo "2400"]
[BlackElo "2476"]
[Annotator "RC"]
[PlyCount "61"]
[EventDate "2022.03.31"]
[EventType "swiss"]
[EventCountry "IND"]
[SourceTitle "playchess.com"]
[Source "ChessBase"]
[SourceQuality "1"]
[TimeControl "5400+30"]

1. d4 {[%emt 0:00:10]} Nf6 {[%emt 0:06:51]} 2. c4 {[%emt 0:00:19]} g6 {[%emt 0:00:18]} 3. g3 {[%emt 0:00:38]} Bg7 {[%emt 0:01:28]} 4. Bg2 {[%emt 0:00:10]} d5 {[%emt 0:00:28]} 5. cxd5 {[%emt 0:00:17]} Nxd5 {[%emt 0:00:07]} 6. e4 {[%emt 0:00:08]} Nb6 {[%emt 0:00:06]} 7. Ne2 {[%emt 0:00:07]} O-O {[%emt 0:01:11]} 8. O-O {[%emt 0:00:30]} Nc6 {[%emt 0:00:41]} 9. d5 {[%emt 0:07:21]} Na5 {[%emt 0:00:53]} 10. Nbc3 {[%emt 0:03:09]} c6 {[%emt 0:01:17]} 11. Nf4 {[%emt 0:12:24]} cxd5 {[%emt 0:02:22]} 12. Nfxd5 {[%emt 0:00:51]} Be6 {[%emt 0:06:20]} 13. Bg5 {[%emt 0:10:37]} Bxd5 {[%emt 0:02:38]} 14. exd5 {[%emt 0:11:12]} h6 {[%emt 0:01:51]} 15. Bf4 {[%emt 0:01:30]} Nac4 {[%emt 0:02:40]} 16. Qe2 {[%emt 0:04:58]} Rc8 {[%emt 0:02:18]} 17. Rad1 {[%emt 0:07:24]} Qd7 {[%emt 0:12:48]} 18. Bc1 {[%emt 0:04:16]} Kh7 {[%emt 0:04:34]} 19. Rfe1 {[%emt 0:00:50]} Rfe8 {[%emt 0:00:39]} 20. Ne4 {[%emt 0:00:12]} f5 {[%emt 0:01:53]} 21. b3 {[%emt 0:01:57]} Ne5 {[%emt 0:01:42]} 22. f4 {[%emt 0:01:12]} Ng4 {[%emt 0:02:43]} 23. Nf2 {[%emt 0:01:43]} Rxc1 {[%emt 0:00:22]} 24. Rxc1 {[%emt 0:05:32]} Bd4 {[%emt 0:00:14]} 25. Rf1 {[%emt 0:01:40]} Nxd5 {[%emt 0:02:58]} 26. Kh1 {[%emt 0:00:30]} Bxf2 {[%emt 0:11:25]} 27. Rxf2 {[%emt 0:00:29]} e5 {[%emt 0:02:18]} 28. fxe5 {[%emt 0:04:41]} Rxe5 {[%emt 0:00:13]} 29. Qxe5 {[%emt 0:00:26]} Nxf2+ {[%emt 0:02:24]} 30. Kg1 {[%emt 0:00:07]} Nd3 {[%emt 0:00:03]} 31. Qxd5 {[%emt 0:00:04]} 1-0

[Event "3rd Gujarat GM Open 2022"]
[Site "Ahmedabad"]
[Date "2022.04.04"]
[Round "7.4"]
[White "Delgado Ramirez, Neuris"]
[Black "Rajesh, V A V"]
[Result "1-0"]
[ECO "C45"]
[WhiteElo "2615"]
[BlackElo "2376"]
[Annotator "RC"]
[PlyCount "113"]
[EventDate "2022.03.31"]
[EventType "swiss"]
[EventCountry "IND"]
[SourceTitle "playchess.com"]
[Source "ChessBase"]
[SourceQuality "1"]
[TimeControl "5400+30"]

1. e4 {[%emt 1:31:00]} e5 {[%emt 1:31:00]} 2. Nf3 {[%emt 0:00:30]} Nc6 {[%emt 0:00:30]} 3. d4 {[%emt 0:00:30]} exd4 {[%emt 0:00:30]} 4. Nxd4 {[%emt 0:00:30]} Nf6 {[%emt 0:00:30]} 5. Nxc6 {[%emt 0:00:30]} bxc6 {[%emt 0:00:30]} 6. e5 {[%emt 0:00:30]} Qe7 {[%emt 0:00:30]} 7. Qe2 {[%emt 0:00:30]} Nd5 {[%emt 0:00:30]} 8. c4 {[%emt 0:00:30]} Ba6 {[%emt 0:00:30]} 9. b3 {[%emt 0:00:30]} Nb6 {[%emt 0:00:30]} 10. Bb2 {[%emt 0:00:30]} O-O-O {[%emt 0:00:30]} 11. Nd2 {[%emt 0:00:30]} Qe6 {[%emt 0:00:30]} 12. g3 {[%emt 0:00:30]} Kb8 {[%emt 0:00:30]} 13. Bg2 {[%emt 0:00:30]} Re8 {[%emt 0:00:30]} 14. O-O {[%emt 0:00:30]} f6 {[%emt 0:00:30]} 15. Nf3 {[%emt 0:00:30]} fxe5 {[%emt 0:00:30]} 16. Qxe5 {[%emt 0:00:30]} Qxe5 {[%emt 0:00:30]} 17. Nxe5 {[%emt 0:00:30]} Bd6 {[%emt 0:00:30]} 18. Nf7 {[%emt 0:00:30]} Rhg8 {[%emt 0:00:30]} 19. Nxd6 {[%emt 0:00:30]} cxd6 {[%emt 0:00:30]} 20. Rfe1 {[%emt 0:00:30]} g6 {[%emt 0:00:30]} 21. a4 {[%emt 0:00:30]} Kc7 {[%emt 0:00:30]} 22. Rac1 {[%emt 0:00:30]} Bb7 {[%emt 0:00:30]} 23. a5 {[%emt 0:00:30]} Nc8 {[%emt 0:00:30]} 24. b4 {[%emt 0:00:30]} c5 {[%emt 0:00:30]} 25. b5 {[%emt 0:00:30]} Bxg2 {[%emt 0:00:30]} 26. Kxg2 {[%emt 0:00:30]} Re6 {[%emt 0:00:30]} 27. f4 {[%emt 0:00:30]} Rge8 {[%emt 0:00:30]} 28. Rxe6 {[%emt 0:00:30]} dxe6 {[%emt 0:00:30]} 29. g4 {[%emt 0:00:30]} Kd7 {[%emt 0:00:30]} 30. Kf3 {[%emt 0:00:30]} Rf8 {[%emt 0:00:30]} 31. Ke3 {[%emt 0:00:30]} Ne7 {[%emt 0:00:30]} 32. Rd1 {[%emt 0:00:30]} Kc7 {[%emt 0:00:30]} 33. Ke4 {[%emt 0:00:30]} Ng8 {[%emt 0:00:30]} 34. Rd3 {[%emt 0:00:30]} Rf7 {[%emt 0:00:30]} 35. Bc3 {[%emt 0:00:30]} Ne7 {[%emt 0:00:30]} 36. Be1 {[%emt 0:00:30]} Ng8 {[%emt 0:00:30]} 37. Bh4 {[%emt 0:00:30]} Nh6 {[%emt 0:00:30]} 38. h3 {[%emt 0:00:30]} Rd7 {[%emt 0:00:30]} 39. Be1 {[%emt 0:00:30]} Nf7 {[%emt 0:00:30]} 40. Bd2 {[%emt 0:00:30]} Kb7 {[%emt 0:00:30]} 41. Be3 {[%emt 0:00:30]} Rd8 {[%emt 0:00:30]} 42. Bf2 {[%emt 0:00:30]} a6 {[%emt 0:00:30]} 43. Bh4 {[%emt 0:00:30]} Ra8 {[%emt 0:00:30]} 44. b6 {[%emt 0:00:30]} Kc6 {[%emt 0:00:30]} 45. Re3 {[%emt 0:00:30]} Re8 {[%emt 0:00:30]} 46. Kd3 {[%emt 0:00:30]} Kd7 {[%emt 0:00:30]} 47. Bf6 {[%emt 0:00:30]} Rg8 {[%emt 0:00:30]} 48. Ke2 {[%emt 0:00:30]} Nd8 {[%emt 0:00:30]} 49. f5 {[%emt 0:00:30]} gxf5 {[%emt 0:00:30]} 50. gxf5 {[%emt 0:00:30]} Nb7 {[%emt 0:00:30]} 51. fxe6+ {[%emt 0:00:30]} Ke8 {[%emt 0:00:30]} 52. Bh4 {[%emt 0:00:30]} Rg6 {[%emt 0:00:30]} 53. e7 {[%emt 0:00:30]} Nxa5 {[%emt 0:00:30]} 54. Ra3 {[%emt 0:00:30]} Re6+ {[%emt 0:00:30]} 55. Kf2 {[%emt 0:00:30]} Nc6 {[%emt 0:00:30]} 56. Rxa6 {[%emt 0:00:30]} Kd7 {[%emt 0:00:30]} 57. Ra7+ {[%emt 0:00:30]} 1-0